bitfinex-derivatives/quotes_SOLF0:USTF0_20240912
["timestamp","ask_amount","ask_price","bid_price","bid_amount"]
[1726162543591,3.3374,134.84,134.82,11.38]
[1726162544196,3.3378,134.83,134.8,3.3383]
[1726162544498,2.7337,134.86,134.79,11.38]
[1726162544797,11.38,134.84,134.79,11.38]
[1726162545001,11.38,134.84,134.79,3.3385]
[1726162545397,3.3382,134.81,134.78,11.38]
[1726162545605,3.3382,134.81,134.78,14.7188]
[1726162546102,3.3382,134.81,134.79,3.3386]
[1726162546300,3.338,134.82,134.79,3.3386]
[1726162549307,3.3382,134.81,134.79,3.3386]
[1726162549607,3.3382,134.81,134.78,14.7188]
[1726162551011,11.38,134.81,134.74,3.62171703]
[1726162551194,11.38,134.79,134.73,12.7994]
[1726162551509,3.3392,134.77,134.74,3.3397]
[1726162553104,1.3035,134.8,134.75,11.38]
[1726162553304,11.38,134.82,134.77,11.38]
[1726162553514,1.3372,134.83,134.79,11.38]
[1726162553808,11.38,134.84,134.79,11.38]
[1726162554307,1.4272,134.85,134.79,11.38]
[1726162554308,12.8072,134.85,134.79,11.38]
[1726162554612,1.4272,134.85,134.8,11.38]
[1726162555005,1.4272,134.85,134.8,14.7184]
[1726162556512,3.3378,134.83,134.8,14.7184]
[1726162558911,1.4272,134.85,134.8,11.38]
[1726162559513,3.3378,134.83,134.8,14.7183]
[1726162559815,1.4272,134.85,134.8,11.38]
[1726162560606,3.3376,134.84,134.81,3.338]
[1726162560806,3.3376,134.84,134.81,14.718]
[1726162562801,1.4231,134.86,134.81,14.718]
[1726162562802,3.3373,134.85,134.82,3.3379]
[1726162563215,3.337,134.86,134.83,14.7176]
[1726162563415,3.337,134.86,134.78,3.67106529]
[1726162563416,1.3096,134.89,134.85,11.38]
[1726162563607,1.353,134.92,134.86,11.38]
[1726162563608,12.733,134.92,134.86,11.38]
[1726162563916,12.733,134.92,134.86,14.7168]
[1726162563917,3.3362,134.9,134.86,14.7168]
[1726162564621,3.3362,134.89,134.86,11.38]
[1726162565308,3.3362,134.89,134.83,11.38]
[1726162565309,11.38,134.89,134.83,11.38]
[1726162565509,11.38,134.88,134.83,11.38]
[1726162566825,3.3368,134.87,134.83,14.7175]
[1726162567116,11.38,134.88,134.83,14.7175]
[1726162567920,3.337,134.86,134.83,14.7175]
[1726162568816,3.337,134.86,134.83,11.38]
[1726162569024,3.337,134.86,134.82,14.7178]
[1726162569726,1.4088,134.93,134.85,11.38]
[1726162569913,1.4088,134.93,134.89,11.38]
[1726162570119,1.4088,134.93,134.77,12.55724835]
[1726162570120,1.4088,134.93,134.91,11.38]
[1726162570523,1.4088,134.93,134.77,240.55724835]
[1726162570715,1.4088,134.93,134.88,11.38]
[1726162570920,1.4088,134.93,134.9,11.38]
[1726162571816,1.4088,134.93,134.91,11.38]
[1726162572011,2.6782,134.97,134.92,11.38]
[1726162572214,4.0045,134.97,134.9,17.8]
[1726162572726,3.3346,134.96,134.91,3.3355]
[1726162573527,3.3348,134.95,134.9,3.3359]
[1726162577927,3.3348,134.95,134.91,3.3356]
[1726162578135,4.0045,134.97,134.92,17.8]
[1726162578318,4.0045,134.97,134.9,17.8]
[1726162578634,3.3346,134.96,134.9,17.8]
[1726162579327,3.3346,134.96,134.91,3.3355]
[1726162580224,3.3346,134.96,134.92,3.3354]
[1726162580424,7.3387,134.97,134.9,17.8]
[1726162580625,4.0045,134.97,134.92,17.8]
[1726162581019,7.3387,134.97,134.93,3.335]
[1726162581424,2.6529,134.97,134.93,3.335]
[1726162581624,2.6529,134.97,134.94,3.3348]
[1726162582932,2.6529,134.97,134.94,3.3347]
[1726162583132,2.6529,134.97,134.92,17.8]
[1726162583332,2.6529,134.97,134.94,17.8]
[1726162583527,2.6529,134.97,134.95,3.3345]
[1726162583732,2.6529,134.97,134.92,17.8]
[1726162583932,1.3263,134.97,134.92,17.8]
[1726162584429,1.3263,134.97,134.9,17.8]
[1726162584629,3.3349,134.95,134.88,17.8]
[1726162585329,3.3345,134.96,134.89,3.78734778]
[1726162585730,3.3345,134.96,134.91,3.3355]
[1726162585926,3.3345,134.96,134.9,17.8]
[1726162586330,3.3345,134.96,134.9,21.48727106]
[1726162586633,4.6606,134.97,134.92,17.8]
[1726162587035,1.3263,134.97,134.92,17.8]
[1726162587534,1.3263,134.97,134.92,21.1352]
[1726162588042,3.3346,134.96,134.92,21.1352]
[1726162591042,3.3346,134.96,134.92,3.3352]
[1726162591737,3.3346,134.96,134.93,3.3352]
[1726162591941,3.3346,134.96,134.9,21.48727106]
[1726162592245,3.3346,134.96,134.93,11.39]
[1726162592942,4.6605,134.97,134.93,14.7251]
[1726162593345,4.6605,134.97,134.94,11.39]
[1726162593546,4.6605,134.97,134.94,14.7249]
[1726162593843,3.3345,134.96,134.94,11.39]
[1726162594030,3.3345,134.96,134.92,11.39]
[1726162594236,3.3345,134.96,134.92,14.7253]
[1726162596145,1.3263,134.97,134.92,14.7253]
[1726162596146,3.3347,134.95,134.92,14.7253]
[1726162596639,1.3263,134.97,134.92,11.39]
[1726162596844,3.3348,134.95,134.92,11.39]
[1726162597248,3.3353,134.93,134.89,11.39]
[1726162597547,11.39,134.95,134.89,11.39]
[1726162597852,11.39,134.95,134.9,3.3357]
[1726162598852,3.3352,134.93,134.89,14.7261]
[1726162599047,1.3263,134.97,134.89,14.7261]
[1726162599252,1.3263,134.97,134.91,11.39]
[1726162599253,12.7163,134.97,134.91,11.39]
[1726162600145,3.3351,134.94,134.91,11.39]
[1726162601243,11.39,134.95,134.87,1.298]
[1726162601445,1.3263,134.97,134.88,11.39]
[1726162601639,3.3354,134.93,134.79,1.2997]
[1726162601846,11.39,134.94,134.9,11.39]
[1726162602445,3.3351,134.94,134.9,11.39]
[1726162602751,3.9284,135.02,134.93,11.39]
[1726162602943,3.9284,135.02,134.97,11.39]
[1726162603144,11.39,135.0,134.88,1.3013]
[1726162603348,11.39,135.0,134.94,11.39]
[1726162604053,3.3339,134.99,134.94,14.7249]
[1726162605240,3.3339,134.99,134.95,3.3346]
[1726162605453,14.7235,135.0,134.95,3.3346]
[1726162605847,3.3335,135.0,134.96,11.39]
[1726162606261,3.3337,134.99,134.96,11.39]
[1726162609158,3.3337,134.99,134.96,14.7244]
[1726162610353,11.39,135.01,134.96,14.7244]
[1726162610354,3.3335,135.0,134.96,14.7244]
[1726162611151,3.3335,135.0,134.97,11.39]
[1726162611351,3.3333,135.01,134.97,11.39]
[1726162611556,3.3333,135.01,134.97,14.7241]
[1726162611958,7.2615,135.02,134.97,14.7241]
[1726162612263,3.9284,135.02,134.97,14.7241]
[1726162612460,3.9284,135.02,134.98,3.3339]
[1726162612669,7.2615,135.02,134.98,3.3339]
[1726162612854,7.2615,135.02,134.97,11.39]
[1726162613054,3.9284,135.02,134.97,14.7241]
[1726162613348,3.3332,135.01,134.97,14.7241]
[1726162614863,3.3336,135.0,134.94,3.65661132]
[1726162615058,11.39,135.01,134.95,11.39]
[1726162615257,15.3184,135.02,134.96,11.39]
[1726162615974,3.3336,135.0,134.96,14.7244]
[1726162617080,15.3184,135.02,134.95,3.3346]
[1726162617081,11.39,135.01,134.95,3.3346]
[1726162617275,11.39,135.0,134.95,3.3346]
[1726162617485,3.334,134.98,134.95,3.3346]
[1726162617869,3.9284,135.02,134.88,1.3013]
[1726162618075,3.9284,135.02,134.93,11.39]
[1726162618076,3.3343,134.97,134.93,11.39]
[1726162618277,11.39,134.94,134.88,1.3013]
[1726162618473,3.74305565,134.97,134.87,15.18263901]
[1726162618780,11.39,134.92,134.86,11.39]
[1726162619169,11.39,134.92,134.86,14.7268]
[1726162619170,3.3357,134.91,134.86,14.7268]
[1726162620078,3.3357,134.91,134.86,3.3368]
[1726162621280,3.336,134.9,134.85,21.1272]
[1726162621473,3.336,134.9,134.85,3.3372]
[1726162621978,3.3357,134.91,134.86,3.3369]
[1726162622368,3.3354,134.92,134.87,3.3365]
[1726162622573,3.3354,134.92,134.86,17.79]
[1726162623787,3.3354,134.92,134.88,3.3364]
[1726162624687,3.3353,134.93,134.88,3.3364]
[1726162624984,4.0982,134.96,134.88,17.79]
[1726162625181,6.0131,134.96,134.9,17.79]
[1726162625381,19.1555,135.0,134.92,3.3354]
[1726162625586,21.821,135.0,134.9,17.79]
[1726162626087,21.821,135.0,134.91,3.3356]
[1726162626875,3.3347,134.95,134.91,3.3356]
[1726162627887,3.3347,134.95,134.92,3.3354]
[1726162628084,3.3347,134.95,134.9,17.79]
[1726162628489,3.3347,134.95,134.91,3.3355]
[1726162629594,3.3347,134.95,134.92,3.3354]
[1726162629800,3.3347,134.95,134.91,3.68569099]
[1726162629801,3.3345,134.96,134.91,3.68569099]
[1726162630089,21.821,135.0,134.91,3.68569099]
[1726162630292,3.3343,134.97,134.91,3.68569099]
[1726162630789,21.821,135.0,134.91,3.68569099]
[1726162630790,3.3347,134.95,134.91,3.68569099]
[1726162631387,3.3345,134.96,134.92,3.3352]
[1726162632191,3.3349,134.95,134.91,7.02129099]
[1726162632394,3.3349,134.95,134.91,3.68569099]
[1726162633388,3.3344,134.97,134.92,17.79]
[1726162633590,4.031,135.0,134.92,17.79]
[1726162633991,3.3345,134.96,134.93,3.3351]
[1726162634696,3.3345,134.96,134.92,21.1253]
[1726162636782,3.3345,134.96,134.93,3.3352]
[1726162636985,3.3343,134.97,134.93,3.3352]
[1726162637484,3.3345,134.96,134.93,3.3352]
[1726162638491,3.3345,134.96,134.92,17.79]
[1726162638694,4.031,135.0,134.92,17.79]
[1726162639489,3.3349,134.95,134.92,17.79]
[1726162639687,3.3349,134.95,134.92,21.1254]
[1726162640195,3.3349,134.95,134.94,11.39]
[1726162645185,3.3349,134.95,134.92,3.3353]
[1726162645393,11.39,134.94,134.88,11.39]
[1726162645593,11.39,134.93,134.88,11.39]
[1726162645796,3.3364,134.88,134.86,11.39]
[1726162647099,3.3367,134.87,134.86,11.39]
[1726162647299,11.39,134.92,134.86,11.39]
[1726162647507,3.3367,134.87,134.86,11.39]
[1726162647689,11.39,134.92,134.86,11.39]
[1726162648000,12.7668,134.93,134.88,11.39]
[1726162648191,1.3768,134.93,134.86,17.81]
[1726162648385,1.3768,134.93,134.88,17.81]
[1726162648598,2.7339,134.94,134.88,17.81]
[1726162648900,2.7339,134.94,134.89,3.3359]
[1726162648901,3.3353,134.93,134.89,3.3359]
[1726162649095,3.3353,134.93,134.88,17.81]
[1726162649600,6.0689,134.94,134.9,3.3358]
[1726162649796,6.0689,134.94,134.9,17.81]
[1726162650496,1.4241,134.97,134.92,17.81]
[1726162650898,1.4241,134.97,134.92,21.1453]
[1726162651096,3.3347,134.95,134.92,21.1453]
[1726162651798,1.4241,134.97,134.92,21.1453]
[1726162652001,3.3346,134.96,134.92,21.1453]
[1726162653399,3.3347,134.95,134.92,21.1453]
[1726162663815,1.4241,134.97,134.92,17.81]
[1726162664011,1.4241,134.97,134.9,17.81]
[1726162664514,3.3353,134.93,134.9,21.1459]
[1726162665218,1.4241,134.97,134.91,3.3357]
[1726162665219,3.335,134.94,134.91,3.3357]
[1726162666118,3.3352,134.93,134.9,21.1458]
[1726162666813,3.3356,134.92,134.88,17.81]
[1726162667018,22.93916248,134.97,134.88,17.81]
[1726162667519,3.3359,134.91,134.88,17.81]
[1726162668028,22.93916248,134.97,134.86,17.81]
[1726162668029,1.4241,134.97,134.86,17.81]
[1726162668313,1.4241,134.97,134.9,21.1457]
[1726162669910,3.3352,134.93,134.9,21.1457]
[1726162670120,3.3352,134.93,134.91,11.39]
[1726162670308,12.8141,134.97,134.91,11.39]
[1726162670623,12.8141,134.97,134.91,14.7254]
[1726162670821,12.8141,134.97,134.91,11.39]
[1726162672317,3.3354,134.93,134.91,11.39]
[1726162673216,3.3351,134.94,134.91,14.7256]
[1726162673521,2.6096,134.99,134.93,11.39]
[1726162673712,3.3343,134.97,134.96,11.39]
[1726162681732,3.334,134.98,134.96,11.39]
[1726162682230,3.334,134.98,134.97,11.39]
[1726162683122,3.3339,134.98,134.95,11.39]
[1726162683324,1.3141,134.99,134.95,11.39]
[1726162684128,11.39,134.98,134.93,11.39]
[1726162684327,3.3349,134.94,134.93,11.39]
[1726162685728,3.3352,134.93,134.91,18.44668876]
[1726162685933,3.3352,134.93,134.91,15.11118876]
[1726162686436,12.8046,134.97,134.91,15.11118876]
[1726162686437,1.4146,134.97,134.91,15.11118876]
[1726162686733,1.4146,134.97,134.93,11.39]
[1726162687124,3.3345,134.96,134.93,11.39]
[1726162687332,1.4146,134.97,134.93,11.39]
[1726162688626,3.3348,134.95,134.93,11.39]
[1726162689933,3.3349,134.94,134.93,11.39]
[1726162690432,3.3348,134.95,134.93,11.39]
[1726162691930,1.3141,134.99,134.94,11.39]
[1726162692128,1.3141,134.99,134.91,3.73721275]
[1726162692129,1.3141,134.99,134.96,11.39]
[1726162692334,18.74798766,135.02,134.96,11.39]
[1726162692639,4.1017,135.02,134.96,11.39]
[1726162693035,4.1017,135.02,134.97,11.39]
[1726162694139,3.3339,134.99,134.97,11.39]
[1726162696045,3.3339,134.98,134.97,11.39]
[1726162696539,3.3338,134.99,134.97,11.39]
[1726162697144,4.1017,135.02,134.97,11.39]
[1726162697348,15.4917,135.02,134.96,11.39]
[1726162698348,3.3342,134.97,134.96,11.39]
[1726162698847,3.3341,134.98,134.96,11.39]
[1726162699044,15.4917,135.02,134.96,11.39]
[1726162699434,3.3345,134.96,134.95,11.39]
[1726162701040,3.3348,134.95,134.93,11.39]
[1726162701246,3.3348,134.95,134.87,1.2966]
[1726162701247,11.39,135.01,134.94,11.39]
[1726162701950,11.39,135.01,134.96,11.39]
[1726162703152,3.3342,134.97,134.96,11.39]
[1726162706649,3.3341,134.98,134.96,11.39]
[1726162706849,3.3341,134.98,134.97,11.39]
[1726162707358,3.3339,134.98,134.97,11.38]
[1726162709863,3.3344,134.97,134.94,3.3348]
[1726162710068,3.3344,134.97,134.96,11.39]
[1726162711160,15.4917,135.02,134.96,11.39]
[1726162711161,11.39,135.01,134.96,11.39]
[1726162711761,3.3342,134.97,134.96,11.39]
[1726162712755,11.39,135.01,134.95,11.39]
[1726162712957,11.39,135.0,134.94,11.39]
[1726162713152,11.39,134.98,134.94,11.39]
[1726162713357,1.3528,134.97,134.94,11.39]
[1726162713556,3.3347,134.95,134.94,11.39]
[1726162714367,1.3528,134.97,134.93,11.39]
[1726162714851,3.3349,134.94,134.93,11.39]
[1726162723265,3.3353,134.93,134.9,3.3358]
[1726162723476,3.3353,134.93,134.92,11.39]
[1726162726471,3.335,134.94,134.92,11.39]
[1726162726672,3.335,134.94,134.93,11.39]
[1726162727478,2.6855,135.02,134.93,11.39]
[1726162727782,2.6855,135.02,134.99,11.39]
[1726162728088,3.3334,135.0,134.99,11.39]
[1726162732386,2.6855,135.02,134.99,11.39]
[1726162733875,3.3334,135.0,134.99,11.39]
[1726162734278,3.3343,134.97,134.94,3.79642671]
[1726162734577,3.3343,134.97,134.96,11.39]
[1726162734773,2.6855,135.02,134.96,11.39]
[1726162734980,2.6855,135.02,134.98,11.39]
[1726162735779,3.3342,134.97,134.94,3.3349]
[1726162735983,3.3342,134.97,134.96,11.39]
[1726162736883,2.6855,135.02,134.96,11.39]
[1726162737083,2.6855,135.02,135.01,11.39]
[1726162737282,2.6855,135.02,134.93,3.67533718]
[1726162737583,3.3341,134.98,134.95,3.3346]
[1726162737785,3.3341,134.98,134.94,3.77649325]
[1726162737977,3.3341,134.98,134.95,3.3345]
[1726162743495,3.3341,134.98,134.97,11.39]
[1726162743878,2.6855,135.02,134.97,11.39]
[1726162744082,2.6855,135.02,135.01,11.39]
[1726162744796,6.0185,135.02,135.01,11.39]
[1726162747090,4.7053,135.02,135.01,11.39]
[1726162749786,3.3336,135.0,134.97,3.3342]
[1726162749987,3.3336,135.0,134.99,11.39]
[1726162757497,12.7623,135.02,134.88,8.1628]
[1726162757703,1.3926,135.01,134.97,11.39]
[1726162758208,3.3339,134.98,134.97,11.39]
[1726162759012,3.3339,134.98,134.97,11.38]
[1726162759996,3.3338,134.99,134.97,11.38]
[1726162760192,3.3338,134.99,134.98,11.38]
[1726162760498,3.3337,134.99,134.98,11.38]
[1726162768823,3.3341,134.98,134.97,11.38]
[1726162770210,11.38,135.01,134.88,0.7468]
[1726162770406,11.38,135.01,134.96,11.38]
[1726162770719,3.3344,134.97,134.96,11.38]
[1726162772408,3.3344,134.96,134.95,11.38]
[1726162777317,1.3718,135.0,134.95,11.38]
[1726162777518,1.3718,135.0,134.91,3.62336026]
[1726162777519,1.3723,135.02,134.99,11.38]
[1726162777724,3.3337,135.0,134.99,11.38]
[1726162780007,3.3334,135.0,134.99,11.38]
[1726162781605,3.3338,134.99,134.96,3.3344]
[1726162781806,3.3338,134.99,134.98,11.38]
[1726162788928,3.334,134.98,134.95,7.02891472]
[1726162790427,3.334,134.98,134.97,11.38]
[1726162791117,3.3338,134.99,134.97,11.38]
[1726162791317,3.3338,134.99,134.98,11.38]
[1726162791825,3.3336,135.0,134.98,11.38]
[1726162792128,3.3336,135.0,134.99,11.38]
[1726162793233,3.3337,134.99,134.97,3.3341]
[1726162793435,3.3337,134.99,134.98,11.38]
[1726162798534,3.3336,135.0,134.98,11.38]
[1726162798733,3.3336,135.0,134.99,11.38]
[1726162798925,1.3723,135.02,134.99,11.38]
[1726162799231,3.333,135.02,135.01,11.38]
[1726162799635,3.3336,135.0,134.88,0.7468]
[1726162799822,3.3336,135.0,134.99,11.38]
[1726162809935,3.3333,135.01,134.99,11.38]
[1726162810138,3.3333,135.01,135.0,11.38]
[1726162811543,3.3335,135.0,134.97,3.3341]
[1726162811739,3.3335,135.0,134.99,11.38]
[1726162812331,1.3899,135.03,134.99,11.38]
[1726162812638,1.3899,135.03,135.01,11.38]
[1726162812845,3.333,135.02,135.01,11.38]
[1726162814135,3.3328,135.03,135.01,11.38]
[1726162814335,12.7863,135.06,135.02,11.38]
[1726162814531,12.7863,135.06,134.91,7.416]
[1726162814741,3.3331,135.02,135.01,11.38]
[1726162814941,11.38,135.04,135.0,11.38]
[1726162815439,3.3332,135.02,135.0,11.38]
[1726162815638,11.38,135.04,135.01,11.38]
[1726162816032,3.333,135.02,135.01,11.38]
[1726162818949,3.3335,135.0,134.99,11.38]
[1726162819434,1.3943,135.03,134.99,11.38]
[1726162819743,3.3333,135.01,135.0,11.38]
[1726162819944,1.3943,135.03,135.0,11.38]
[1726162820245,3.3332,135.02,135.0,11.38]
[1726162821147,3.3332,135.01,135.0,11.38]
[1726162825150,3.3335,135.0,134.99,11.38]
[1726162826053,3.3333,135.01,134.99,11.38]
[1726162828743,3.3333,135.01,134.98,3.3339]
[1726162828947,3.3333,135.01,135.0,11.38]
[1726162829741,1.3943,135.03,135.0,11.38]
[1726162829943,1.3943,135.03,135.01,11.38]
[1726162831042,3.333,135.02,135.01,11.38]
[1726162831244,1.3943,135.03,134.97,3.77000592]
[1726162831442,1.3943,135.03,135.0,11.38]
[1726162832258,3.3334,135.01,135.0,11.38]
[1726162834260,3.333,135.02,135.0,11.38]
[1726162834448,1.3943,135.03,135.01,11.38]
[1726162834647,1.3943,135.03,135.02,11.38]
[1726162835058,4.7271,135.03,135.02,11.38]
[1726162838552,3.3328,135.03,135.02,11.38]
[1726162841961,12.7863,135.06,135.02,11.38]
[1726162842662,1.4063,135.06,135.05,11.38]
[1726162843349,3.3324,135.05,135.04,11.38]
[1726162844358,3.3324,135.05,135.04,17.62491093]
[1726162844963,3.3324,135.05,135.04,6.24491093]
[1726162845364,12.7863,135.06,135.02,11.38]
[1726162845661,12.7863,135.06,134.98,3.67182868]
[1726162845856,12.7863,135.06,134.93,0.7451]
[1726162845857,11.38,135.05,135.0,11.38]
[1726162846165,11.38,135.05,134.99,9.58147478]
[1726162846166,11.38,135.05,135.01,17.62777478]
[1726162846369,3.3329,135.03,135.02,6.24777478]
[1726162848159,3.3326,135.04,135.02,17.62777478]
[1726162848363,3.3326,135.04,135.02,11.38]
[1726162849370,3.3327,135.03,135.02,11.38]
[1726162849557,3.3327,135.03,135.02,17.62683371]
[1726162851458,1.4063,135.06,135.02,17.62683371]
[1726162851770,1.4063,135.06,135.04,11.38]
[1726162852664,1.4063,135.06,135.01,3.3332]
[1726162852665,3.3325,135.04,135.03,11.38]
[1726162855259,3.3325,135.04,135.03,17.6251174]
[1726162855474,3.3325,135.04,135.03,6.2451174]
[1726162855655,3.3325,135.04,135.01,11.38]
[1726162856063,3.3325,135.04,135.02,6.24588977]
[1726162856364,3.3325,135.04,135.01,11.38]
[1726162856571,3.3325,135.04,135.02,6.24555849]
[1726162856761,3.3325,135.04,135.01,11.38]
[1726162856961,3.3325,135.04,135.0,3.3333]
[1726162856962,3.3325,135.04,135.02,11.38]
[1726162857273,11.38,135.03,134.98,11.38]
[1726162857579,3.3334,135.0,134.99,6.24892553]
[1726162857759,11.38,135.03,134.99,17.62892553]
[1726162857956,11.38,135.03,135.0,6.24892553]
[1726162858166,3.3334,135.01,134.99,11.38]
[1726162858362,3.3334,135.01,135.0,6.24907418]
[1726162860671,3.3334,135.01,135.0,17.62907418]
[1726162861768,3.333,135.02,135.0,17.62907418]
[1726162862070,3.333,135.02,135.01,17.62907418]
[1726162864284,1.4063,135.06,135.01,17.62907418]
[1726162864576,1.4063,135.06,135.02,6.24907418]
[1726162864775,3.3327,135.03,135.02,11.38]
[1726162864970,3.3327,135.03,135.02,17.62736158]
[1726162867274,3.3327,135.03,135.02,11.38]
[1726162867471,3.3327,135.03,135.02,17.6009412]
[1726162869084,3.3327,135.03,135.02,6.2209412]
[1726162869985,3.3332,135.01,135.0,11.38]
[1726162870281,3.3332,135.01,135.0,6.22222101]
[1726162870878,14.7132,135.01,135.0,6.22222101]
[1726162871177,12.6806,135.01,134.96,11.38]
[1726162871480,12.6806,135.01,134.97,6.22542426]
[1726162871779,3.3337,134.99,134.98,6.22542426]
[1726162873479,3.3344,134.96,134.92,3.79697576]
[1726162873684,11.38,134.97,134.93,12.33610539]
[1726162873885,11.38,134.97,134.94,6.22862707]
[1726162874182,3.3344,134.96,134.95,6.22862707]
[1726162875281,3.3344,134.96,134.95,17.60862707]
[1726162875483,2.6326,135.0,134.95,17.60862707]
[1726162875787,2.6326,135.0,134.97,11.38]
[1726162875983,3.3339,134.98,134.97,11.38]
[1726162876583,3.3339,134.98,134.97,6.22681935]
[1726162877387,3.3342,134.97,134.96,11.38]
[1726162877687,3.3342,134.97,134.96,17.60771358]
[1726162882890,3.3342,134.97,134.96,11.38]
[1726162883090,3.3342,134.97,134.96,17.60535037]
[1726162883292,3.334,134.98,134.96,11.38]
[1726162883495,3.334,134.98,134.97,11.38]
[1726162888489,3.3344,134.97,134.96,11.38]
[1726162895292,3.334,134.98,134.96,11.38]
[1726162895603,1.3006,135.01,134.97,17.60542992]
[1726162895909,3.3332,135.01,135.0,11.38]
[1726162896096,1.3896,135.03,135.0,11.38]
[1726162896407,1.3896,135.03,135.02,11.38]
[1726162896408,3.3327,135.03,135.02,11.38]
[1726162904106,1.317,135.05,135.02,11.38]
[1726162904107,3.3326,135.04,135.02,11.38]
[1726162904303,1.317,135.05,135.02,11.38]
[1726162905510,3.3325,135.04,135.02,11.38]
[1726162906306,3.3327,135.03,135.02,11.38]
[1726162909013,3.333,135.02,134.99,3.3336]
[1726162909215,3.333,135.02,135.0,11.38]
[1726162911908,3.333,135.02,134.99,3.3336]
[1726162912119,3.3328,135.03,135.01,11.38]
[1726162912308,3.3328,135.03,135.02,11.38]
[1726162915703,3.3328,135.03,135.0,3.3334]
[1726162915907,3.3328,135.03,135.02,11.38]
[1726162917214,3.3331,135.02,134.99,3.3336]
[1726162917418,3.3331,135.02,134.97,4.99108158]
[1726162917419,12.697,135.05,135.0,11.38]
[1726162918109,3.3331,135.02,135.0,11.38]
[1726162918423,3.3331,135.02,135.01,11.38]
[1726162920307,3.3335,135.0,134.97,8.32518158]
[1726162920627,33.63,135.04,134.99,11.38]
[1726162920806,33.63,135.04,135.0,11.38]
[1726162921921,3.3332,135.01,135.0,11.38]
[1726162922814,3.3335,135.0,134.96,6.09980729]
[1726162923006,1.317,135.05,134.98,11.38]
[1726162923007,11.38,135.03,134.98,11.38]
[1726162923210,22.25,135.03,134.98,11.38]
[1726162923912,11.38,135.04,134.99,11.38]
[1726162924115,1.317,135.05,134.99,11.38]
[1726162924317,34.947,135.05,134.99,11.38]
[1726162924623,34.947,135.05,135.01,11.38]
[1726162925420,3.333,135.02,135.01,11.38]
[1726162926925,1.317,135.05,135.01,11.38]
[1726162927121,1.317,135.05,134.97,3.69146276]
[1726162927122,1.317,135.05,135.03,11.38]
[1726162928230,3.3326,135.04,135.03,11.38]
[1726162930739,4.6494,135.05,135.03,11.38]
[1726162931224,4.6494,135.05,135.01,3.3331]
[1726162931532,4.6494,135.05,135.03,11.38]
[1726162936141,1.317,135.05,135.03,11.38]
[1726162937130,4.6493,135.05,135.03,11.38]
[1726162938134,4.6493,135.05,134.99,5.74015629]
[1726162938341,4.6493,135.05,135.03,11.38]
[1726162938547,4.6493,135.05,134.88,10.0089]
[1726162938747,4.6493,135.05,135.03,11.38]
[1726162939247,3.3325,135.04,135.03,11.38]
[1726162939948,12.697,135.05,134.88,10.0089]
[1726162940146,11.38,135.04,134.99,11.38]